{"text_format":"3","workbook":"xlsx","n_sheets":2,"sheets":["Inventaris Perlengkapan","Pengaturan"],"not_rendered":{"defined_names":4},"read":"whole","date_system":"1900"}

{"sheet":"Inventaris Perlengkapan","index":0,"n_rows":35,"n_cols":6,"rows_kept":35,"merged":[[0,1,2,2],[0,4,0,5]]}
[]
[{"$nulls":4},"Sorot item yang lebih lama dari:"]
[{"$nulls":4},4]
[]
[null,"ID PERLENGKAPAN","NAMA ITEM","DIBERIKAN KEPADA","TANGGAL \nDIKELUARKAN","UMUR ITEM"]
[null,"ITEM0001","kursi","Karyawan 1",{"$f":"TODAY()-25","v":"2012-12-10"},{"$f":"IF(tblEquipmentInventory[[#This Row],[TANGGAL \nDIKELUARKAN]]<>\"\",TODAY()-tblEquipmentInventory[[#This Row],[TANGGAL \nDIKELUARKAN]],\"\")","v":{"v":25,"d":"25 hari"}}]
[null,"ITEM0002","printer laser","Karyawan 2",{"$f":"TODAY()-479","v":"2011-09-13"},{"$f":"IF(tblEquipmentInventory[[#This Row],[TANGGAL \nDIKELUARKAN]]<>\"\",TODAY()-tblEquipmentInventory[[#This Row],[TANGGAL \nDIKELUARKAN]],\"\")","v":{"v":479,"d":"479 hari"}}]
[null,"ITEM0003","pemindai","Karyawan 3",{"$f":"TODAY()-177","v":"2012-07-11"},{"$f":"IF(tblEquipmentInventory[[#This Row],[TANGGAL \nDIKELUARKAN]]<>\"\",TODAY()-tblEquipmentInventory[[#This Row],[TANGGAL \nDIKELUARKAN]],\"\")","v":{"v":177,"d":"177 hari"}}]
[null,"ITEM0004","printer laser","Karyawan 7",{"$f":"TODAY()-18","v":"2012-12-17"},{"$f":"IF(tblEquipmentInventory[[#This Row],[TANGGAL \nDIKELUARKAN]]<>\"\",TODAY()-tblEquipmentInventory[[#This Row],[TANGGAL \nDIKELUARKAN]],\"\")","v":{"v":18,"d":"18 hari"}}]
[null,"ITEM0005","coffee maker","Karyawan 20",{"$f":"TODAY()-227","v":"2012-05-22"},{"$f":"IF(tblEquipmentInventory[[#This Row],[TANGGAL \nDIKELUARKAN]]<>\"\",TODAY()-tblEquipmentInventory[[#This Row],[TANGGAL \nDIKELUARKAN]],\"\")","v":{"v":227,"d":"227 hari"}}]
[null,"ITEM0006","pemindai","Karyawan 14",{"$f":"TODAY()-50","v":"2012-11-15"},{"$f":"IF(tblEquipmentInventory[[#This Row],[TANGGAL \nDIKELUARKAN]]<>\"\",TODAY()-tblEquipmentInventory[[#This Row],[TANGGAL \nDIKELUARKAN]],\"\")","v":{"v":50,"d":"50 hari"}}]
[null,"ITEM0007","meja","Karyawan 4",{"$f":"TODAY()-120","v":"2012-09-06"},{"$f":"IF(tblEquipmentInventory[[#This Row],[TANGGAL \nDIKELUARKAN]]<>\"\",TODAY()-tblEquipmentInventory[[#This Row],[TANGGAL \nDIKELUARKAN]],\"\")","v":{"v":120,"d":"120 hari"}}]
[null,"ITEM0008","copy machine","Karyawan 12",{"$f":"TODAY()-499","v":"2011-08-24"},{"$f":"IF(tblEquipmentInventory[[#This Row],[TANGGAL \nDIKELUARKAN]]<>\"\",TODAY()-tblEquipmentInventory[[#This Row],[TANGGAL \nDIKELUARKAN]],\"\")","v":{"v":499,"d":"499 hari"}}]
[null,"ITEM0009","monitor ekstra","Karyawan 8",{"$f":"TODAY()-30","v":"2012-12-05"},{"$f":"IF(tblEquipmentInventory[[#This Row],[TANGGAL \nDIKELUARKAN]]<>\"\",TODAY()-tblEquipmentInventory[[#This Row],[TANGGAL \nDIKELUARKAN]],\"\")","v":{"v":30,"d":"30 hari"}}]
[null,"ITEM0010","whiteboard","Karyawan 19",{"$f":"TODAY()-50","v":"2012-11-15"},{"$f":"IF(tblEquipmentInventory[[#This Row],[TANGGAL \nDIKELUARKAN]]<>\"\",TODAY()-tblEquipmentInventory[[#This Row],[TANGGAL \nDIKELUARKAN]],\"\")","v":{"v":50,"d":"50 hari"}}]
[null,"ITEM0011","copy machine","Karyawan 12",{"$f":"TODAY()-450","v":"2011-10-12"},{"$f":"IF(tblEquipmentInventory[[#This Row],[TANGGAL \nDIKELUARKAN]]<>\"\",TODAY()-tblEquipmentInventory[[#This Row],[TANGGAL \nDIKELUARKAN]],\"\")","v":{"v":450,"d":"450 hari"}}]
[null,"ITEM0012","alat tulis","Karyawan 18",{"$f":"TODAY()-420","v":"2011-11-11"},{"$f":"IF(tblEquipmentInventory[[#This Row],[TANGGAL \nDIKELUARKAN]]<>\"\",TODAY()-tblEquipmentInventory[[#This Row],[TANGGAL \nDIKELUARKAN]],\"\")","v":{"v":420,"d":"420 hari"}}]
[null,"ITEM0013","monitor ekstra","Karyawan 8",{"$f":"TODAY()-250","v":"2012-04-29"},{"$f":"IF(tblEquipmentInventory[[#This Row],[TANGGAL \nDIKELUARKAN]]<>\"\",TODAY()-tblEquipmentInventory[[#This Row],[TANGGAL \nDIKELUARKAN]],\"\")","v":{"v":250,"d":"250 hari"}}]
[null,"ITEM0014","coffee maker","Karyawan 9",{"$f":"TODAY()-45","v":"2012-11-20"},{"$f":"IF(tblEquipmentInventory[[#This Row],[TANGGAL \nDIKELUARKAN]]<>\"\",TODAY()-tblEquipmentInventory[[#This Row],[TANGGAL \nDIKELUARKAN]],\"\")","v":{"v":45,"d":"45 hari"}}]
[null,"ITEM0015","alat tulis","Karyawan 13",{"$f":"TODAY()-502","v":"2011-08-21"},{"$f":"IF(tblEquipmentInventory[[#This Row],[TANGGAL \nDIKELUARKAN]]<>\"\",TODAY()-tblEquipmentInventory[[#This Row],[TANGGAL \nDIKELUARKAN]],\"\")","v":{"v":502,"d":"502 hari"}}]
[null,"ITEM0016","pemindai","Karyawan 1",{"$f":"TODAY()-350","v":"2012-01-20"},{"$f":"IF(tblEquipmentInventory[[#This Row],[TANGGAL \nDIKELUARKAN]]<>\"\",TODAY()-tblEquipmentInventory[[#This Row],[TANGGAL \nDIKELUARKAN]],\"\")","v":{"v":350,"d":"350 hari"}}]
[null,"ITEM0017","copy machine","Karyawan 19",{"$f":"TODAY()-125","v":"2012-09-01"},{"$f":"IF(tblEquipmentInventory[[#This Row],[TANGGAL \nDIKELUARKAN]]<>\"\",TODAY()-tblEquipmentInventory[[#This Row],[TANGGAL \nDIKELUARKAN]],\"\")","v":{"v":125,"d":"125 hari"}}]
[null,"ITEM0018","whiteboard","Karyawan 15",{"$f":"TODAY()-90","v":"2012-10-06"},{"$f":"IF(tblEquipmentInventory[[#This Row],[TANGGAL \nDIKELUARKAN]]<>\"\",TODAY()-tblEquipmentInventory[[#This Row],[TANGGAL \nDIKELUARKAN]],\"\")","v":{"v":90,"d":"90 hari"}}]
[null,"ITEM0019","kursi","Karyawan 16",{"$f":"TODAY()-730","v":"2011-01-05"},{"$f":"IF(tblEquipmentInventory[[#This Row],[TANGGAL \nDIKELUARKAN]]<>\"\",TODAY()-tblEquipmentInventory[[#This Row],[TANGGAL \nDIKELUARKAN]],\"\")","v":{"v":730,"d":"730 hari"}}]
[null,"ITEM0020","kain lap (1 set)","Karyawan 3",{"$f":"TODAY()-540","v":"2011-07-14"},{"$f":"IF(tblEquipmentInventory[[#This Row],[TANGGAL \nDIKELUARKAN]]<>\"\",TODAY()-tblEquipmentInventory[[#This Row],[TANGGAL \nDIKELUARKAN]],\"\")","v":{"v":540,"d":"540 hari"}}]
[null,"ITEM0021","printer laser","Karyawan 7",{"$f":"TODAY()-18","v":"2012-12-17"},{"$f":"IF(tblEquipmentInventory[[#This Row],[TANGGAL \nDIKELUARKAN]]<>\"\",TODAY()-tblEquipmentInventory[[#This Row],[TANGGAL \nDIKELUARKAN]],\"\")","v":{"v":18,"d":"18 hari"}}]
[null,"ITEM0022","komputer laptop","Karyawan 8",{"$f":"TODAY()-283","v":"2012-03-27"},{"$f":"IF(tblEquipmentInventory[[#This Row],[TANGGAL \nDIKELUARKAN]]<>\"\",TODAY()-tblEquipmentInventory[[#This Row],[TANGGAL \nDIKELUARKAN]],\"\")","v":{"v":283,"d":"283 hari"}}]
[null,"ITEM0023","alat tulis","Karyawan 9",{"$f":"TODAY()-479","v":"2011-09-13"},{"$f":"IF(tblEquipmentInventory[[#This Row],[TANGGAL \nDIKELUARKAN]]<>\"\",TODAY()-tblEquipmentInventory[[#This Row],[TANGGAL \nDIKELUARKAN]],\"\")","v":{"v":479,"d":"479 hari"}}]
[null,"ITEM0024","printer laser","Karyawan 19",{"$f":"TODAY()-355","v":"2012-01-15"},{"$f":"IF(tblEquipmentInventory[[#This Row],[TANGGAL \nDIKELUARKAN]]<>\"\",TODAY()-tblEquipmentInventory[[#This Row],[TANGGAL \nDIKELUARKAN]],\"\")","v":{"v":355,"d":"355 hari"}}]
[null,"ITEM0025","meja","Karyawan 7",{"$f":"TODAY()-28","v":"2012-12-07"},{"$f":"IF(tblEquipmentInventory[[#This Row],[TANGGAL \nDIKELUARKAN]]<>\"\",TODAY()-tblEquipmentInventory[[#This Row],[TANGGAL \nDIKELUARKAN]],\"\")","v":{"v":28,"d":"28 hari"}}]
[null,"ITEM0026","whiteboard","Karyawan 8",{"$f":"TODAY()-28","v":"2012-12-07"},{"$f":"IF(tblEquipmentInventory[[#This Row],[TANGGAL \nDIKELUARKAN]]<>\"\",TODAY()-tblEquipmentInventory[[#This Row],[TANGGAL \nDIKELUARKAN]],\"\")","v":{"v":28,"d":"28 hari"}}]
[null,"ITEM0027","komputer laptop","Karyawan 19",{"$f":"TODAY()-736","v":"2010-12-30"},{"$f":"IF(tblEquipmentInventory[[#This Row],[TANGGAL \nDIKELUARKAN]]<>\"\",TODAY()-tblEquipmentInventory[[#This Row],[TANGGAL \nDIKELUARKAN]],\"\")","v":{"v":736,"d":"736 hari"}}]
[null,"ITEM0028","meja","Karyawan 12",{"$f":"TODAY()-68","v":"2012-10-28"},{"$f":"IF(tblEquipmentInventory[[#This Row],[TANGGAL \nDIKELUARKAN]]<>\"\",TODAY()-tblEquipmentInventory[[#This Row],[TANGGAL \nDIKELUARKAN]],\"\")","v":{"v":68,"d":"68 hari"}}]
[null,"ITEM0029","pemindai","Karyawan 14",{"$f":"TODAY()-67","v":"2012-10-29"},{"$f":"IF(tblEquipmentInventory[[#This Row],[TANGGAL \nDIKELUARKAN]]<>\"\",TODAY()-tblEquipmentInventory[[#This Row],[TANGGAL \nDIKELUARKAN]],\"\")","v":{"v":67,"d":"67 hari"}}]
[null,"ITEM0030","coffee maker","Karyawan 3",{"$f":"TODAY()-149","v":"2012-08-08"},{"$f":"IF(tblEquipmentInventory[[#This Row],[TANGGAL \nDIKELUARKAN]]<>\"\",TODAY()-tblEquipmentInventory[[#This Row],[TANGGAL \nDIKELUARKAN]],\"\")","v":{"v":149,"d":"149 hari"}}]

{"sheet":"Pengaturan","index":1,"n_rows":23,"n_cols":4,"rows_kept":23}
[]
[]
[null,"KARYAWAN",null,"ITEM"]
[null,"Karyawan 1",null,"kursi"]
[null,"Karyawan 2",null,"coffee maker"]
[null,"Karyawan 3",null,"copy machine"]
[null,"Karyawan 4",null,"komputer desktop"]
[null,"Karyawan 5",null,"kain lap (1 set)"]
[null,"Karyawan 6",null,"monitor ekstra"]
[null,"Karyawan 7",null,"printer inkjet"]
[null,"Karyawan 8",null,"komputer laptop"]
[null,"Karyawan 9",null,"printer laser"]
[null,"Karyawan 10",null,"marker pens (3 pack)"]
[null,"Karyawan 11",null,"pemindai"]
[null,"Karyawan 12",null,"alat tulis"]
[null,"Karyawan 13",null,"meja"]
[null,"Karyawan 14",null,"USB drive"]
[null,"Karyawan 15",null,"whiteboard"]
[null,"Karyawan 16"]
[null,"Karyawan 17"]
[null,"Karyawan 18"]
[null,"Karyawan 19"]
[null,"Karyawan 20"]